{"text_format":"1","workbook":"xlsx","n_sheets":3,"sheets":["bd","depura","formulas"],"not_rendered":{"charts":0,"images":0,"macros":1,"external_links":0,"defined_names":3,"comments":0,"pivot_tables":0},"unopened":[],"bounds":{"document_bytes":16777216,"sheet_cells":100000,"rows_first":2000,"rows_last":500,"rows_between":2000,"halvings":0,"cell_chars":16384,"cell_head_chars":4096},"cells_cut":0,"cells_raw":0,"read":"whole","date_system":"1900"}

{"sheet":"bd","index":0,"n_rows":101,"n_cols":3,"rows_kept":101,"cut":false,"hidden":false,"merged":[]}
["Name","E-mail","http://formulasexcel.com"]
["Nombre1","Nombre1@email.com"]
["Nombre2","Nombre2@email.com"]
["Nombre3","Nombre3@email.com"]
["Nombre4","Nombre4@email.com"]
["Nombre5","Nombre5@email.com"]
["Nombre6","Nombre6@email.com"]
["Nombre7","Nombre7@email.com"]
["Nombre8","Nombre8@email.com"]
["Nombre9","Nombre9@email.com"]
["Nombre10","Nombre10@email.com"]
["Nombre11","Nombre11@email.com"]
["Nombre12","Nombre12@email.com"]
["Nombre13","Nombre13@email.com"]
["Nombre14","Nombre14@email.com"]
["Nombre15","Nombre15@email.com"]
["Nombre16","Nombre16@email.com"]
["Nombre17","Nombre17@email.com"]
["Nombre18","Nombre18@email.com"]
["Nombre19","Nombre19@email.com"]
["Nombre20","Nombre20@email.com"]
["Nombre21","Nombre21@email.com"]
["Nombre22","Nombre22@email.com"]
["Nombre23","Nombre23@email.com"]
["Nombre24","Nombre24@email.com"]
["Nombre25","Nombre25@email.com"]
["Nombre26","Nombre26@email.com"]
["Nombre27","Nombre27@email.com"]
["Nombre28","Nombre28@email.com"]
["Nombre29","Nombre29@email.com"]
["Nombre30","Nombre30@email.com"]
["Nombre31","Nombre31@email.com"]
["Nombre32","Nombre32@email.com"]
["Nombre33","Nombre33@email.com"]
["Nombre34","Nombre34@email.com"]
["Nombre35","Nombre35@email.com"]
["Nombre36","Nombre36@email.com"]
["Nombre37","Nombre37@email.com"]
["Nombre38","Nombre38@email.com"]
["Nombre39","Nombre39@email.com"]
["Nombre40","Nombre40@email.com"]
["Nombre41","Nombre41@email.com"]
["Nombre42","Nombre42@email.com"]
["Nombre43","Nombre43@email.com"]
["Nombre44","Nombre44@email.com"]
["Nombre45","Nombre45@email.com"]
["Nombre46","Nombre46@email.com"]
["Nombre47","Nombre47@email.com"]
["Nombre48","Nombre48@email.com"]
["Nombre49","Nombre49@email.com"]
["Nombre50","Nombre50@email.com"]
["Nombre51","Nombre51@email.com"]
["Nombre52","Nombre52@email.com"]
["Nombre53","Nombre53@email.com"]
["Nombre54","Nombre54@email.com"]
["Nombre55","Nombre55@email.com"]
["Nombre56","Nombre56@email.com"]
["Nombre57","Nombre57@email.com"]
["Nombre58","Nombre58@email.com"]
["Nombre59","Nombre59@email.com"]
["Nombre60","Nombre60@email.com"]
["Nombre61","Nombre61@email.com"]
["Nombre62","Nombre62@email.com"]
["Nombre63","Nombre63@email.com"]
["Nombre64","Nombre64@email.com"]
["Nombre65","Nombre65@email.com"]
["Nombre66","Nombre66@email.com"]
["Nombre67","Nombre67@email.com"]
["Nombre68","Nombre68@email.com"]
["Nombre69","Nombre69@email.com"]
["Nombre70","Nombre70@email.com"]
["Nombre71","Nombre71@email.com"]
["Nombre72","Nombre72@email.com"]
["Nombre73","Nombre73@email.com"]
["Nombre74","Nombre74@email.com"]
["Nombre75","Nombre75@email.com"]
["Nombre76","Nombre76@email.com"]
["Nombre77","Nombre77@email.com"]
["Nombre78","Nombre78@email.com"]
["Nombre79","Nombre79@email.com"]
["Nombre80","Nombre80@email.com"]
["Nombre81","Nombre81@email.com"]
["Nombre82","Nombre82@email.com"]
["Nombre83","Nombre83@email.com"]
["Nombre84","Nombre84@email.com"]
["Nombre85","Nombre85@email.com"]
["Nombre86","Nombre86@email.com"]
["Nombre87","Nombre87@email.com"]
["Nombre88","Nombre88@email.com"]
["Nombre89","Nombre89@email.com"]
["Nombre90","Nombre90@email.com"]
["Nombre91","Nombre91@email.com"]
["Nombre92","Nombre92@email.com"]
["Nombre93","Nombre93@email.com"]
["Nombre94","Nombre94@email.com"]
["Nombre95","Nombre95@email.com"]
["Nombre96","Nombre96@email.com"]
["Nombre97","Nombre97@email.com"]
["Nombre98","Nombre98@email.com"]
["Nombre99","Nombre99@email.com"]
["Nombre100","Nombre100@email.com"]

{"sheet":"depura","index":1,"n_rows":201,"n_cols":6,"rows_kept":201,"cut":false,"hidden":false,"merged":[]}
["Nombre","Email",null,null,null,"http://formulasexcel.com"]
["Nombre1","Nombre1@email.com"]
["Nombre2","Nombre2@email.com"]
["Nombre3","Nombre3@email.com"]
["Nombre4","Nombre4@email.com"]
["Nombre5","Nombre5@email.com"]
["Nombre6","Nombre6@email.com"]
["Nombre7","Nombre7@email.com"]
["Nombre8","Nombre8@email.com"]
["Nombre9","Nombre9@email.com"]
["Nombre10","Nombre10@email.com"]
["Nombre11","Nombre11@email.com"]
["Nombre12","Nombre12@email.com"]
["Nombre13","Nombre13@email.com"]
["Nombre14","Nombre14@email.com"]
["Nombre15","Nombre15@email.com"]
["Nombre16","Nombre16@email.com"]
["Nombre17","Nombre17@email.com"]
["Nombre18","Nombre18@email.com"]
["Nombre19","Nombre19@email.com"]
["Nombre20","Nombre20@email.com"]
["Nombre21","Nombre21@email.com"]
["Nombre22","Nombre22@email.com"]
["Nombre23","Nombre23@email.com"]
["Nombre24","Nombre24@email.com"]
["Nombre25","Nombre25@email.com"]
["Nombre26","Nombre26@email.com"]
["Nombre27","Nombre27@email.com"]
["Nombre28","Nombre28@email.com"]
["Nombre29","Nombre29@email.com"]
["Nombre30","Nombre30@email.com"]
["Nombre31","Nombre31@email.com"]
["Nombre32","Nombre32@email.com"]
["Nombre33","Nombre33@email.com"]
["Nombre34","Nombre34@email.com"]
["Nombre35","Nombre35@email.com"]
["Nombre36","Nombre36@email.com"]
["Nombre37","Nombre37@email.com"]
["Nombre38","Nombre38@email.com"]
["Nombre39","Nombre39@email.com"]
["Nombre40","Nombre40@email.com"]
["Nombre41","Nombre41@email.com"]
["Nombre42","Nombre42@email.com"]
["Nombre43","Nombre43@email.com"]
["Nombre44","Nombre44@email.com"]
["Nombre45","Nombre45@email.com"]
["Nombre46","Nombre46@email.com"]
["Nombre47","Nombre47@email.com"]
["Nombre48","Nombre48@email.com"]
["Nombre49","Nombre49@email.com"]
["Nombre50","Nombre50@email.com"]
["Nombre51","Nombre51@email.com"]
["Nombre52","Nombre52@email.com"]
["Nombre53","Nombre53@email.com"]
["Nombre54","Nombre54@email.com"]
["Nombre55","Nombre55@email.com"]
["Nombre56","Nombre56@email.com"]
["Nombre57","Nombre57@email.com"]
["Nombre58","Nombre58@email.com"]
["Nombre59","Nombre59@email.com"]
["Nombre60","Nombre60@email.com"]
["Nombre61","Nombre61@email.com"]
["Nombre62","Nombre62@email.com"]
["Nombre63","Nombre63@email.com"]
["Nombre64","Nombre64@email.com"]
["Nombre65","Nombre65@email.com"]
["Nombre66","Nombre66@email.com"]
["Nombre67","Nombre67@email.com"]
["Nombre68","Nombre68@email.com"]
["Nombre69","Nombre69@email.com"]
["Nombre70","Nombre70@email.com"]
["Nombre71","Nombre71@email.com"]
["Nombre72","Nombre72@email.com"]
["Nombre73","Nombre73@email.com"]
["Nombre74","Nombre74@email.com"]
["Nombre75","Nombre75@email.com"]
["Nombre76","Nombre76@email.com"]
["Nombre77","Nombre77@email.com"]
["Nombre78","Nombre78@email.com"]
["Nombre79","Nombre79@email.com"]
["Nombre80","Nombre80@email.com"]
["Nombre81","Nombre81@email.com"]
["Nombre82","Nombre82@email.com"]
["Nombre83","Nombre83@email.com"]
["Nombre84","Nombre84@email.com"]
["Nombre85","Nombre85@email.com"]
["Nombre86","Nombre86@email.com"]
["Nombre87","Nombre87@email.com"]
["Nombre88","Nombre88@email.com"]
["Nombre89","Nombre89@email.com"]
["Nombre90","Nombre90@email.com"]
["Nombre91","Nombre91@email.com"]
["Nombre92","Nombre92@email.com"]
["Nombre93","Nombre93@email.com"]
["Nombre94","Nombre94@email.com"]
["Nombre95","Nombre95@email.com"]
["Nombre96","Nombre96@email.com"]
["Nombre97","Nombre97@email.com"]
["Nombre98","Nombre98@email.com"]
["Nombre99","Nombre99@email.com"]
["Nombre100","Nombre100@email.com"]
["Nombre101","Nombre101@email.com"]
["Nombre102","Nombre102@email.com"]
["Nombre103","Nombre103@email.com"]
["Nombre104","Nombre104@email.com"]
["Nombre105","Nombre105@email.com"]
["Nombre106","Nombre106@email.com"]
["Nombre107","Nombre107@email.com"]
["Nombre108","Nombre108@email.com"]
["Nombre109","Nombre109@email.com"]
["Nombre110","Nombre110@email.com"]
["Nombre111","Nombre111@email.com"]
["Nombre112","Nombre112@email.com"]
["Nombre113","Nombre113@email.com"]
["Nombre114","Nombre114@email.com"]
["Nombre115","Nombre115@email.com"]
["Nombre116","Nombre116@email.com"]
["Nombre117","Nombre117@email.com"]
["Nombre118","Nombre118@email.com"]
["Nombre119","Nombre119@email.com"]
["Nombre120","Nombre120@email.com"]
["Nombre121","Nombre121@email.com"]
["Nombre122","Nombre122@email.com"]
["Nombre123","Nombre123@email.com"]
["Nombre124","Nombre124@email.com"]
["Nombre125","Nombre125@email.com"]
["Nombre126","Nombre126@email.com"]
["Nombre127","Nombre127@email.com"]
["Nombre128","Nombre128@email.com"]
["Nombre129","Nombre129@email.com"]
["Nombre130","Nombre130@email.com"]
["Nombre131","Nombre131@email.com"]
["Nombre132","Nombre132@email.com"]
["Nombre133","Nombre133@email.com"]
["Nombre134","Nombre134@email.com"]
["Nombre135","Nombre135@email.com"]
["Nombre136","Nombre136@email.com"]
["Nombre137","Nombre137@email.com"]
["Nombre138","Nombre138@email.com"]
["Nombre139","Nombre139@email.com"]
["Nombre140","Nombre140@email.com"]
["Nombre141","Nombre141@email.com"]
["Nombre142","Nombre142@email.com"]
["Nombre143","Nombre143@email.com"]
["Nombre144","Nombre144@email.com"]
["Nombre145","Nombre145@email.com"]
["Nombre146","Nombre146@email.com"]
["Nombre147","Nombre147@email.com"]
["Nombre148","Nombre148@email.com"]
["Nombre149","Nombre149@email.com"]
["Nombre150","Nombre150@email.com"]
["Nombre151","Nombre151@email.com"]
["Nombre152","Nombre152@email.com"]
["Nombre153","Nombre153@email.com"]
["Nombre154","Nombre154@email.com"]
["Nombre155","Nombre155@email.com"]
["Nombre156","Nombre156@email.com"]
["Nombre157","Nombre157@email.com"]
["Nombre158","Nombre158@email.com"]
["Nombre159","Nombre159@email.com"]
["Nombre160","Nombre160@email.com"]
["Nombre161","Nombre161@email.com"]
["Nombre162","Nombre162@email.com"]
["Nombre163","Nombre163@email.com"]
["Nombre164","Nombre164@email.com"]
["Nombre165","Nombre165@email.com"]
["Nombre166","Nombre166@email.com"]
["Nombre167","Nombre167@email.com"]
["Nombre168","Nombre168@email.com"]
["Nombre169","Nombre169@email.com"]
["Nombre170","Nombre170@email.com"]
["Nombre171","Nombre171@email.com"]
["Nombre172","Nombre172@email.com"]
["Nombre173","Nombre173@email.com"]
["Nombre174","Nombre174@email.com"]
["Nombre175","Nombre175@email.com"]
["Nombre176","Nombre176@email.com"]
["Nombre177","Nombre177@email.com"]
["Nombre178","Nombre178@email.com"]
["Nombre179","Nombre179@email.com"]
["Nombre180","Nombre180@email.com"]
["Nombre181","Nombre181@email.com"]
["Nombre182","Nombre182@email.com"]
["Nombre183","Nombre183@email.com"]
["Nombre184","Nombre184@email.com"]
["Nombre185","Nombre185@email.com"]
["Nombre186","Nombre186@email.com"]
["Nombre187","Nombre187@email.com"]
["Nombre188","Nombre188@email.com"]
["Nombre189","Nombre189@email.com"]
["Nombre190","Nombre190@email.com"]
["Nombre191","Nombre191@email.com"]
["Nombre192","Nombre192@email.com"]
["Nombre193","Nombre193@email.com"]
["Nombre194","Nombre194@email.com"]
["Nombre195","Nombre195@email.com"]
["Nombre196","Nombre196@email.com"]
["Nombre197","Nombre197@email.com"]
["Nombre198","Nombre198@email.com"]
["Nombre199","Nombre199@email.com"]
["Nombre200","Nombre200@email.com"]

{"sheet":"formulas","index":2,"n_rows":201,"n_cols":5,"rows_kept":201,"cut":false,"hidden":false,"merged":[]}
["Nombre","Email","STATUS","CONTEO"]
["Nombre1","Nombre1@email.com",{"$f":"IF(COUNTIF(base,B2)>=1,\"SI\",\"\")","v":"SI"},{"$f":"COUNTIF(base,B2)","v":1},"http://formulasexcel.com"]
["Nombre2","Nombre2@email.com","SI",1]
["Nombre3","Nombre3@email.com","SI",1]
["Nombre4","Nombre4@email.com","SI",1]
["Nombre5","Nombre5@email.com","SI",1]
["Nombre6","Nombre6@email.com","SI",1]
["Nombre7","Nombre7@email.com","SI",1]
["Nombre8","Nombre8@email.com","SI",1]
["Nombre9","Nombre9@email.com","SI",1]
["Nombre10","Nombre10@email.com","SI",1]
["Nombre11","Nombre11@email.com","SI",1]
["Nombre12","Nombre12@email.com","SI",1]
["Nombre13","Nombre13@email.com","SI",1]
["Nombre14","Nombre14@email.com","SI",1]
["Nombre15","Nombre15@email.com","SI",1]
["Nombre16","Nombre16@email.com","SI",1]
["Nombre17","Nombre17@email.com","SI",1]
["Nombre18","Nombre18@email.com","SI",1]
["Nombre19","Nombre19@email.com","SI",1]
["Nombre20","Nombre20@email.com","SI",1]
["Nombre21","Nombre21@email.com","SI",1]
["Nombre22","Nombre22@email.com","SI",1]
["Nombre23","Nombre23@email.com","SI",1]
["Nombre24","Nombre24@email.com","SI",1]
["Nombre25","Nombre25@email.com","SI",1]
["Nombre26","Nombre26@email.com","SI",1]
["Nombre27","Nombre27@email.com","SI",1]
["Nombre28","Nombre28@email.com","SI",1]
["Nombre29","Nombre29@email.com","SI",1]
["Nombre30","Nombre30@email.com","SI",1]
["Nombre31","Nombre31@email.com","SI",1]
["Nombre32","Nombre32@email.com","SI",1]
["Nombre33","Nombre33@email.com",{"$f":"IF(COUNTIF(base,B34)>=1,\"SI\",\"\")","v":"SI"},{"$f":"COUNTIF(base,B34)","v":1}]
["Nombre34","Nombre34@email.com","SI",1]
["Nombre35","Nombre35@email.com","SI",1]
["Nombre36","Nombre36@email.com","SI",1]
["Nombre37","Nombre37@email.com","SI",1]
["Nombre38","Nombre38@email.com","SI",1]
["Nombre39","Nombre39@email.com","SI",1]
["Nombre40","Nombre40@email.com","SI",1]
["Nombre41","Nombre41@email.com","SI",1]
["Nombre42","Nombre42@email.com","SI",1]
["Nombre43","Nombre43@email.com","SI",1]
["Nombre44","Nombre44@email.com","SI",1]
["Nombre45","Nombre45@email.com","SI",1]
["Nombre46","Nombre46@email.com","SI",1]
["Nombre47","Nombre47@email.com","SI",1]
["Nombre48","Nombre48@email.com","SI",1]
["Nombre49","Nombre49@email.com","SI",1]
["Nombre50","Nombre50@email.com","SI",1]
["Nombre51","Nombre51@email.com","SI",1]
["Nombre52","Nombre52@email.com","SI",1]
["Nombre53","Nombre53@email.com","SI",1]
["Nombre54","Nombre54@email.com","SI",1]
["Nombre55","Nombre55@email.com","SI",1]
["Nombre56","Nombre56@email.com","SI",1]
["Nombre57","Nombre57@email.com","SI",1]
["Nombre58","Nombre58@email.com","SI",1]
["Nombre59","Nombre59@email.com","SI",1]
["Nombre60","Nombre60@email.com","SI",1]
["Nombre61","Nombre61@email.com","SI",1]
["Nombre62","Nombre62@email.com","SI",1]
["Nombre63","Nombre63@email.com","SI",1]
["Nombre64","Nombre64@email.com","SI",1]
["Nombre65","Nombre65@email.com",{"$f":"IF(COUNTIF(base,B66)>=1,\"SI\",\"\")","v":"SI"},{"$f":"COUNTIF(base,B66)","v":1}]
["Nombre66","Nombre66@email.com","SI",1]
["Nombre67","Nombre67@email.com","SI",1]
["Nombre68","Nombre68@email.com","SI",1]
["Nombre69","Nombre69@email.com","SI",1]
["Nombre70","Nombre70@email.com","SI",1]
["Nombre71","Nombre71@email.com","SI",1]
["Nombre72","Nombre72@email.com","SI",1]
["Nombre73","Nombre73@email.com","SI",1]
["Nombre74","Nombre74@email.com","SI",1]
["Nombre75","Nombre75@email.com","SI",1]
["Nombre76","Nombre76@email.com","SI",1]
["Nombre77","Nombre77@email.com","SI",1]
["Nombre78","Nombre78@email.com","SI",1]
["Nombre79","Nombre79@email.com","SI",1]
["Nombre80","Nombre80@email.com","SI",1]
["Nombre81","Nombre81@email.com","SI",1]
["Nombre82","Nombre82@email.com","SI",1]
["Nombre83","Nombre83@email.com","SI",1]
["Nombre84","Nombre84@email.com","SI",1]
["Nombre85","Nombre85@email.com","SI",1]
["Nombre86","Nombre86@email.com","SI",1]
["Nombre87","Nombre87@email.com","SI",1]
["Nombre88","Nombre88@email.com","SI",1]
["Nombre89","Nombre89@email.com","SI",1]
["Nombre90","Nombre90@email.com","SI",1]
["Nombre91","Nombre91@email.com","SI",1]
["Nombre92","Nombre92@email.com","SI",1]
["Nombre93","Nombre93@email.com","SI",1]
["Nombre94","Nombre94@email.com","SI",1]
["Nombre95","Nombre95@email.com","SI",1]
["Nombre96","Nombre96@email.com","SI",1]
["Nombre97","Nombre97@email.com",{"$f":"IF(COUNTIF(base,B98)>=1,\"SI\",\"\")","v":"SI"},{"$f":"COUNTIF(base,B98)","v":1}]
["Nombre98","Nombre98@email.com","SI",1]
["Nombre99","Nombre99@email.com","SI",1]
["Nombre100","Nombre100@email.com","SI",1]
["Nombre101","Nombre101@email.com","",0]
["Nombre102","Nombre102@email.com","",0]
["Nombre103","Nombre103@email.com","",0]
["Nombre104","Nombre104@email.com","",0]
["Nombre105","Nombre105@email.com","",0]
["Nombre106","Nombre106@email.com","",0]
["Nombre107","Nombre107@email.com","",0]
["Nombre108","Nombre108@email.com","",0]
["Nombre109","Nombre109@email.com","",0]
["Nombre110","Nombre110@email.com","",0]
["Nombre111","Nombre111@email.com","",0]
["Nombre112","Nombre112@email.com","",0]
["Nombre113","Nombre113@email.com","",0]
["Nombre114","Nombre114@email.com","",0]
["Nombre115","Nombre115@email.com","",0]
["Nombre116","Nombre116@email.com","",0]
["Nombre117","Nombre117@email.com","",0]
["Nombre118","Nombre118@email.com","",0]
["Nombre119","Nombre119@email.com","",0]
["Nombre120","Nombre120@email.com","",0]
["Nombre121","Nombre121@email.com","",0]
["Nombre122","Nombre122@email.com","",0]
["Nombre123","Nombre123@email.com","",0]
["Nombre124","Nombre124@email.com","",0]
["Nombre125","Nombre125@email.com","",0]
["Nombre126","Nombre126@email.com","",0]
["Nombre127","Nombre127@email.com","",0]
["Nombre128","Nombre128@email.com","",0]
["Nombre129","Nombre129@email.com",{"$f":"IF(COUNTIF(base,B130)>=1,\"SI\",\"\")","v":""},{"$f":"COUNTIF(base,B130)","v":0}]
["Nombre130","Nombre130@email.com","",0]
["Nombre131","Nombre131@email.com","",0]
["Nombre132","Nombre132@email.com","",0]
["Nombre133","Nombre133@email.com","",0]
["Nombre134","Nombre134@email.com","",0]
["Nombre135","Nombre135@email.com","",0]
["Nombre136","Nombre136@email.com","",0]
["Nombre137","Nombre137@email.com","",0]
["Nombre138","Nombre138@email.com","",0]
["Nombre139","Nombre139@email.com","",0]
["Nombre140","Nombre140@email.com","",0]
["Nombre141","Nombre141@email.com","",0]
["Nombre142","Nombre142@email.com","",0]
["Nombre143","Nombre143@email.com","",0]
["Nombre144","Nombre144@email.com","",0]
["Nombre145","Nombre145@email.com","",0]
["Nombre146","Nombre146@email.com","",0]
["Nombre147","Nombre147@email.com","",0]
["Nombre148","Nombre148@email.com","",0]
["Nombre149","Nombre149@email.com","",0]
["Nombre150","Nombre150@email.com","",0]
["Nombre151","Nombre151@email.com","",0]
["Nombre152","Nombre152@email.com","",0]
["Nombre153","Nombre153@email.com","",0]
["Nombre154","Nombre154@email.com","",0]
["Nombre155","Nombre155@email.com","",0]
["Nombre156","Nombre156@email.com","",0]
["Nombre157","Nombre157@email.com","",0]
["Nombre158","Nombre158@email.com","",0]
["Nombre159","Nombre159@email.com","",0]
["Nombre160","Nombre160@email.com","",0]
["Nombre161","Nombre161@email.com",{"$f":"IF(COUNTIF(base,B162)>=1,\"SI\",\"\")","v":""},{"$f":"COUNTIF(base,B162)","v":0}]
["Nombre162","Nombre162@email.com","",0]
["Nombre163","Nombre163@email.com","",0]
["Nombre164","Nombre164@email.com","",0]
["Nombre165","Nombre165@email.com","",0]
["Nombre166","Nombre166@email.com","",0]
["Nombre167","Nombre167@email.com","",0]
["Nombre168","Nombre168@email.com","",0]
["Nombre169","Nombre169@email.com","",0]
["Nombre170","Nombre170@email.com","",0]
["Nombre171","Nombre171@email.com","",0]
["Nombre172","Nombre172@email.com","",0]
["Nombre173","Nombre173@email.com","",0]
["Nombre174","Nombre174@email.com","",0]
["Nombre175","Nombre175@email.com","",0]
["Nombre176","Nombre176@email.com","",0]
["Nombre177","Nombre177@email.com","",0]
["Nombre178","Nombre178@email.com","",0]
["Nombre179","Nombre179@email.com","",0]
["Nombre180","Nombre180@email.com","",0]
["Nombre181","Nombre181@email.com","",0]
["Nombre182","Nombre182@email.com","",0]
["Nombre183","Nombre183@email.com","",0]
["Nombre184","Nombre184@email.com","",0]
["Nombre185","Nombre185@email.com","",0]
["Nombre186","Nombre186@email.com","",0]
["Nombre187","Nombre187@email.com","",0]
["Nombre188","Nombre188@email.com","",0]
["Nombre189","Nombre189@email.com","",0]
["Nombre190","Nombre190@email.com","",0]
["Nombre191","Nombre191@email.com","",0]
["Nombre192","Nombre192@email.com","",0]
["Nombre193","Nombre193@email.com",{"$f":"IF(COUNTIF(base,B194)>=1,\"SI\",\"\")","v":""},{"$f":"COUNTIF(base,B194)","v":0}]
["Nombre194","Nombre194@email.com","",0]
["Nombre195","Nombre195@email.com","",0]
["Nombre196","Nombre196@email.com","",0]
["Nombre197","Nombre197@email.com","",0]
["Nombre198","Nombre198@email.com","",0]
["Nombre199","Nombre199@email.com","",0]
["Nombre200","Nombre200@email.com","",0]